{"text_format":"1","workbook":"xlsx","n_sheets":1,"sheets":["Sheet 1"],"not_rendered":{"charts":0,"images":0,"macros":1,"external_links":0,"defined_names":2,"comments":0,"pivot_tables":0},"unopened":[],"bounds":{"document_bytes":16777216,"sheet_cells":100000,"rows_first":2000,"rows_last":500,"rows_between":2000,"halvings":0,"cell_chars":16384,"cell_head_chars":4096},"cells_cut":0,"cells_raw":0,"read":"whole","date_system":"1900"}

{"sheet":"Sheet 1","index":0,"n_rows":85,"n_cols":51,"rows_kept":85,"cut":false,"hidden":false,"merged":[[49,3,49,7],[11,15,11,16],[12,15,12,17]]}
["Directions: From left to right, enter information for each sample and follow the recommended pooling guidelines. ",null,null,null,null,null,null,null,null,null,null,null,null,null,null,null,null,null,"PN40676RevO"]
["Do not enter anything in cells that are red. Blue columns indicate pipetting steps.",null,null,null,null,null,null,null,null,null,null,null,null,null,null,null,null,null,"2026-02-13"]
["[v3 Chemistry] Recommended values for expected # cells: 11,000 for whole cells; 8,000 for nuclei; 3,000 for low (30,000 cells) input."]
["Click here for more information on sequencing coverage requirements; contact illumina support for secific sequencer, capacity, and loading questions."]
[]
[]
[]
[]
["Sequencing Instrument -->"]
["Max read pairs ",{"$f":"IFERROR(VLOOKUP($B$9,$W$19:$Z$36,3,0), \"\")","v":""}]
["% PhiX",{"$f":"IFERROR(VLOOKUP($B$9,$W$19:$Z$36,2,0)-1, \"\")","v":""}]
["Patterned",{"$f":"IFERROR(VLOOKUP($B$9,$W$19:$Z$36,4,0),\"\")","v":""},null,null,null,null,null,null,null,null,null,null,null,null,null,"                        Target Molarity -->",null,null,5,"nM"]
[null,null,null,null,null,null,null,null,null,null,null,null,null,null,null,"                              Target Volume -->",null,null,30,"uL "]
[]
[null,"Sample Name","Library Type","Index","Additional Indexes i7","Additional Indexes i5","Panel Type","Panel Size ","Custom Info","Expected # cells","Reads Required","Qubit (ng/uL)","Avg. Size (bp)","Molarity (nM)","Volume of Sample (uL) ","Volume of Water (uL)","Final Molarity (nM)","Volume to Pool","Volume to Pool (uL)"]
["Sample 1",null,null,null,null,null,null,{"$f":"IFERROR(VLOOKUP(G16,$AF$20:$AG$32,2,0),\"\")","v":""},null,null,{"$f":"IF(ISBLANK(J16),\"\",IF(AND(C16=$AB$20,ISNUMBER(H16)),H16*J16*$AJ$19,IF(AND(C16=$AB$20,G16=$AB$26), J16*I16*$AJ$19,IF(AND(C16=$AC$20, ISNUMBER(H16)),J16*H16*$AJ$20,IF(G16=$AC$23,J16*I16*$AJ$20,IF(G16=$AC$22,J16* (I16+$AG$25)*$AJ$20,IF(AND(C16=$AD$20, ISNUMBER(H16)),J16*H16*$AJ$21,IF(G16=$AD$23,J16*I16*$AJ$21,J16*(I16+$AG$31)*$AJ$21))))))))","v":""},null,{"$f":"IFERROR(IF(L16=\"\",\"\", IF(C16=$AB$20,450,IF(C16=$AC$20, 260,IF(C16=$AD$20,460,\"\")))), \"\")","v":""},{"$f":"IFERROR(L16/($AM$19*M16)*10^6,\"\")","v":""},2,{"$f":"IFERROR(((N16*O16)/$S$12)-O16,\"\")","v":""},{"$f":"IFERROR(N16*O16/(P16+O16),\"\")","v":""},{"$f":"IFERROR(IF(L16=\"\", \"\", IF(C16=$AB$20, $S$13*(K16/SUM($K$16:$K$31)),IF(C16=$AD$20,$S$13*(K16/SUM($K$16:$K$31)),IF($B$12=$Z$23,$S$13*$AM$20*(K16/SUM($K$16:$K$31)),$S$13*(K16/SUM($K$16:$K$31)))))),\"\")","v":""},{"$f":"IFERROR(IF(L16=\"\", \"\",( R16/SUM($R$16:$R$31))*$S$13),\"\")","v":""},{"$f":"IFERROR(IF(N16<$S$12,\"Warning: Molarity too low; lower the target molarity (above).\",IF(S16>(P16+O16), \"Warning: Not enough diluted sample; increase the volume of sample (column O) or lower the target volume (above).\", \"\")),\"\")","v":""},null,null,"Sequencer Info",null,null,null,null,"Panel Options",null,null,null,"Panel Sizes",null,null,"Coverage",null,null,"Other constants",null,null,"Index sequences"]
["Sample 2",null,null,null,null,null,null,{"$f":"IFERROR(VLOOKUP(G17,$AF$20:$AG$32,2,0),\"\")","v":""},null,null,{"$f":"IF(ISBLANK(J17),\"\",IF(AND(C17=$AB$20,ISNUMBER(H17)),H17*J17*$AJ$19,IF(AND(C17=$AB$20,G17=$AB$26), J17*I17*$AJ$19,IF(AND(C17=$AC$20, ISNUMBER(H17)),J17*H17*$AJ$20,IF(G17=$AC$23,J17*I17*$AJ$20,IF(G17=$AC$22,J17* (I17+$AG$25)*$AJ$20,IF(AND(C17=$AD$20, ISNUMBER(H17)),J17*H17*$AJ$21,IF(G17=$AD$23,J17*I17*$AJ$21,J17*(I17+$AG$31)*$AJ$21))))))))","v":""},null,{"$f":"IFERROR(IF(L17=\"\",\"\", IF(C17=$AB$20,450,IF(C17=$AC$20, 260,IF(C17=$AD$20,460,\"\")))), \"\")","v":""},"",2,{"$f":"IFERROR(((N17*O17)/$S$12)-O17,\"\")","v":""},{"$f":"IFERROR(N17*O17/(P17+O17),\"\")","v":""},{"$f":"IFERROR(IF(L17=\"\", \"\", IF(C17=$AB$20, $S$13*(K17/SUM($K$16:$K$31)),IF($B$12=$Z$23,$S$13*$AM$20*(K17/SUM($K$16:$K$31)),$S$13*(K17/SUM($K$16:$K$31))))),\"\")","v":""},{"$f":"IFERROR(IF(L17=\"\", \"\",( R17/SUM($R$16:$R$31))*$S$13),\"\")","v":""},{"$f":"IFERROR(IF(N17<$S$12,\"Warning: Molarity too low; lower the target molarity (above).\",IF(S17>(P17+O17), \"Warning: Not enough diluted sample; increase the volume of sample (column O) or lower the target volume (above).\", \"\")),\"\")","v":""}]
["Sample 3",null,null,null,null,null,null,"",null,null,"",null,"","",2,"","","","","",null,null,"Sequencer","PhiX","Max Reads","Patterned?"]
["Sample 4",null,null,null,null,null,null,"",null,null,"",null,"","",2,"","","","","",null,null,"MiSeq | V3",1.05,25000000,"No",null,null,null,null,null,null,null,null,"DNA",80,"per amp, per cell","Molecular weight per bp",660,null,"DNA","Protein","RNA",null,"DNA Additional Indexes","Protein Additional Indexes",null,null,"i7","i5","i5 Reverse Complement"]
["Sample 5",null,null,null,null,null,null,"",null,null,"",null,"","",2,"","","","","",null,null,"HiSeq 2500 | Rapid Run Single",1.1000000000000001,300000000,"No",null,"DNA","Protein","RNA",null,"AML",127,null,"per AOC",750,"per AOC, per cell","Adjustment factor for protein libs",0.75,null,"DNA Index 1","Protein Index 1","RNA Index 1",null,"DNA Unique 9","Protein Unique 9",null,"DNA Index 1","CTGATCGT ","ATATGCGC ","GCGCATAT"]
["Sample 6",null,null,null,null,null,null,"",null,null,"",null,"","",2,"","","","","",null,null,"HiSeq 2500 | Rapid Run Dual",1.1000000000000001,600000000,"No",null,"AML","Heme Oncology 45-plex","Core Panel",null,"MYE",312,null,"RNA",100,"per amp, per cell",null,null,null,"DNA Index 2","Protein Index 2","RNA Index 2",null,"DNA Unique 10","Protein Unique 10",null,"DNA Index 2","ACTCTCGA ","TGGTACAG","CTGTACCA"]
["Sample 7",null,null,null,null,null,null,"",null,null,"",null,"","",2,"","","","","",null,null,"NextSeq 1000/2000 | P1",1.07,100000000,"Yes",null,"MYE","Heme Oncology 45-plex + spike-in","Core Panel + Custom",null,"AML MRD",321,null,null,null,null,null,null,null,"DNA Index 3","Protein Index 3","RNA Index 3",null,"DNA Unique 11","Protein Unique 11",null,"DNA Index 3","TGAGCTAG","AACCGTTC ","GAACGGTT"]
["Sample 8",null,null,null,null,null,null,"",null,null,"",null,"","",2,"","","","","",null,null,"NextSeq 1000/2000 | P2",1.07,400000000,"Yes",null,"AML MRD","Custom AOC pool","Custom",null,"scMRD AML 17-plex",17,null,null,null,null,null,null,null,"DNA Index 4","Protein Index 4","RNA Index 4",null,"DNA Unique 12","Protein Unique 12",null,"DNA Index 4","GAGACGAT ","TAACCGGT ","ACCGGTTA"]
["Sample 9",null,null,null,null,null,null,"",null,null,"",null,"","",2,"","","","","",null,null,"NextSeq 2000 | P3",1.07,1200000000,"Yes",null,"gwCNV","scMRD AML 17-plex",null,null,"Custom","Enter amplicon # -->",null,null,null,null,null,null,null,"DNA Index 5","Protein Index 5","RNA Index 5",null,"DNA Unique 13","Protein Unique 13",null,"DNA Index 5","CTTGTCGA ","GAACATCG ","CGATGTTC"]
["Sample 10",null,null,null,null,null,null,"",null,null,"",null,"","",2,"","","","","",null,null,"NextSeq 2000 | P4",1.07,1800000000,"Yes",null,"MM","MM 19-plex",null,null,"Heme Oncology 45-plex",45,null,null,null,null,null,null,null,"DNA Index 6","Protein Index 6","RNA Index 6",null,"DNA Unique 14","Protein Unique 14",null,"DNA Index 6","TTCCAAGG ","CCTTGTAG ","CTACAAGG"]
["Sample 11",null,null,null,null,null,null,"",null,null,"",null,"","",2,"","","","","",null,null,"NextSeq 500/550 | Mid-Output",1.2,130000000,"No",null,"Custom",null,null,null,"Heme Oncology 45-plex + spike-in","Enter # of AOC spike-ins -->",null,null,null,null,null,null,null,"DNA Index 7","Protein Index 7","RNA Index 7",null,"DNA Unique 15","Protein Unique 15",null,"DNA Index 7","CGCATGAT","TCAGGCTT ","AAGCCTGA"]
["Sample 12",null,null,null,null,null,null,"",null,null,"",null,"","",2,"","","","","",null,null,"NextSeq 500/550 | High-Output",1.2,400000000,"No",null,null,null,null,null,"Custom AOC pool","Enter AOC # -->",null,null,null,null,null,null,null,"DNA Index 8","Protein Index 8","RNA Index 8",null,"DNA Unique 16","Protein Unique 16",null,"DNA Index 8","ACGGAACA ","GTTCTCGT","ACGAGAAC"]
["Sample 13",null,null,null,null,null,null,"",null,null,"",null,"","",2,"","","","","",null,null,"HiSeq 3000",1.2,2500000000,"Yes",null,null,null,null,null,"gwCNV",500,null,null,null,null,null,null,null,"DNA Additional Indexes","Protein Additional Indexes",null,null,null,null,null,"Protein Index 1","TAAGGCGA ","ATATGCGC ","GCGCATAT"]
["Sample 14",null,null,null,null,null,null,"",null,null,"",null,"","",2,"","","","","",null,null,"HiSeq 4000",1.2,5000000000,"Yes",null,null,null,null,null,"MM",345,null,null,null,null,null,null,null,null,null,null,null,null,null,null,"Protein Index 2","CGTACTAG","TGGTACAG","CTGTACCA"]
["Sample 15",null,null,null,null,null,null,"",null,null,"",null,"","",2,"","","","","",null,null,"NovaSeq 6000 | SP",1.1499999999999999,800000000,"Yes",null,null,null,null,null,"MM 19-plex",19,null,null,null,null,null,null,null,null,null,null,null,null,null,null,"Protein Index 3","AGGCAGAA ","AACCGTTC ","GAACGGTT"]
["Sample 16",null,null,null,null,null,null,"",null,null,"",null,"","",2,"","","","","",null,null,"NovaSeq 6000 | S1",1.1499999999999999,1600000000,"Yes",null,null,null,null,null,"Core Panel",216,null,null,null,null,null,null,null,null,null,null,null,null,null,null,"Protein Index 4","TCCTGAGC ","TAACCGGT ","ACCGGTTA"]
["Sample 17",null,null,null,null,null,null,"",null,null,"",null,"",{"$f":"IFERROR(L32/($AM$19*M32)*10^6,\"\")","v":""},2,{"$f":"IFERROR(((N32*O32)/$S$12)-O32,\"\")","v":""},{"$f":"IFERROR(N32*O32/(P32+O32),\"\")","v":""},"",{"$f":"IFERROR(IF(L32=\"\", \"\",( R32/SUM($R$16:$R$31))*$S$13),\"\")","v":""},"",null,null,"NovaSeq 6000 | S2",1.1499999999999999,4100000000,"Yes",null,null,null,null,null,"Core Panel + Custom","Enter custom amplicon # -->",null,null,null,null,null,null,null,null,null,null,null,null,null,null,"Protein Index 5","GGACTCCT ","GAACATCG ","CGATGTTC"]
["Sample 18",null,null,null,null,null,null,"",null,null,"",null,"","",2,{"$f":"IFERROR(((N33*O33)/$S$12)-O33,\"\")","v":""},{"$f":"IFERROR(N33*O33/(P33+O33),\"\")","v":""},"",{"$f":"IFERROR(IF(L33=\"\", \"\",( R33/SUM($R$16:$R$31))*$S$13),\"\")","v":""},"",null,null,"NovaSeq 6000 | S4",1.1499999999999999,10000000000,"Yes",null,null,null,null,null,null,null,null,null,null,null,null,null,null,null,null,null,null,null,null,null,"Protein Index 6","TAGGCATG ","CCTTGTAG ","CTACAAGG"]
["Sample 19",null,null,null,null,null,null,"",null,null,"",null,"","",2,"","","","","",null,null,"NovaSeq X | 1.5B",1.1499999999999999,1600000000,"Yes",null,null,null,null,null,null,null,null,null,null,null,null,null,null,null,null,null,null,null,null,null,"Protein Index 7","CTCTCTAC ","TCAGGCTT ","AAGCCTGA"]
["Sample 20",null,null,null,null,null,null,"",null,null,"",null,"","",2,"","","","","",null,null,"NovaSeq X | 10B",1.1499999999999999,10000000000,"Yes",null,null,null,null,null,null,null,null,null,null,null,null,null,null,null,null,null,null,null,null,null,"Protein Index 8","CAGAGAGG ","GTTCTCGT","ACGAGAAC"]
["Sample 21",null,null,null,null,null,null,"",null,null,"",null,"","",2,"","","","","",null,null,"NovaSeq X | 25B",1.1499999999999999,26000000000,"Yes",null,null,null,null,null,null,null,null,null,null,null,null,null,null,null,null,null,null,null,null,null,"DNA Unique 9","CGGCTAAT","AGAACGAG","CTCGTTCT"]
["Sample 22",null,null,null,null,null,null,"",null,null,"",null,"","",2,"","","","","",null,null,null,null,null,null,null,null,null,null,null,null,null,null,null,null,null,null,null,null,null,null,null,null,null,null,null,"DNA Unique 10","ATCGATCG","TGCTTCCA","TGGAAGCA"]
["Sample 23",null,null,null,null,null,null,"",null,null,"",null,"","",2,"","","","","",null,null,null,null,null,null,null,null,null,null,null,null,null,null,null,null,null,null,null,null,null,null,null,null,null,null,null,"DNA Unique 11","GCAAGATC","CTTCGACT","AGTCGAAG"]
["Sample 24",null,null,null,null,null,null,"",null,null,"",null,"","",2,"","","","","",null,null,null,null,null,null,null,null,null,null,null,null,null,null,null,null,null,null,null,null,null,null,null,null,null,null,null,"DNA Unique 12","GCTATCCT","CACCTGTT","AACAGGTG"]
["Sample 25",null,null,null,null,null,null,"",null,null,"",null,"","",2,"","","","","",null,null,null,null,null,null,null,null,null,null,null,null,null,null,null,null,null,null,null,null,null,null,null,null,null,null,null,"DNA Unique 13","TACGCTAC","ATCACACG","CGTGTGAT"]
["Sample 26",null,null,null,null,null,null,"",null,null,"",null,"","",2,"","","","","",null,null,null,null,null,null,null,null,null,null,null,null,null,null,null,null,null,null,null,null,null,null,null,null,null,null,null,"DNA Unique 14","TGGACTCT","CCGTAAGA","TCTTACGG"]
["Sample 27",null,null,null,null,null,null,"",null,null,"",null,"","",2,"","","","","",null,null,null,null,null,null,null,null,null,null,null,null,null,null,null,null,null,null,null,null,null,null,null,null,null,null,null,"DNA Unique 15","AGAGTAGC","TACGCCTT","AAGGCGTA"]
["Sample 28",null,null,null,null,null,null,"",null,null,"",null,"","",2,"","","","","",null,null,null,null,null,null,null,null,null,null,null,null,null,null,null,null,null,null,null,null,null,null,null,null,null,null,null,"DNA Unique 16","ATCCAGAG","CGACGTTA","TAACGTCG"]
["Sample 29",null,null,null,null,null,null,"",null,null,"",null,"","",2,"","","","","",null,null,null,null,null,null,null,null,null,null,null,null,null,null,null,null,null,null,null,null,null,null,null,null,null,null,null,"Protein Unique 9","AGCGTAGC","AGAACGAG","CTCGTTCT"]
["Sample 30",null,null,null,null,null,null,"",null,null,"",null,"","",2,"","","","","",null,null,null,null,null,null,null,null,null,null,null,null,null,null,null,null,null,null,null,null,null,null,null,null,null,null,null,"Protein Unique 10","CAGCCTCG","TGCTTCCA","TGGAAGCA"]
["Sample 31",null,null,null,null,null,null,"",null,null,"",null,"","",2,"","","","","",null,null,null,null,null,null,null,null,null,null,null,null,null,null,null,null,null,null,null,null,null,null,null,null,null,null,null,"Protein Unique 11","TGCCTCTT","CTTCGACT","AGTCGAAG"]
["Sample 32",null,null,null,null,null,null,"",null,null,"",null,"","",2,"","","","","",null,null,null,null,null,null,null,null,null,null,null,null,null,null,null,null,null,null,null,null,null,null,null,null,null,null,null,"Protein Unique 12","TCCTCTAC","CACCTGTT","AACAGGTG"]
[null,null,null,null,null,null,null,null,null,null,null,null,null,null,null,null,null,null,null,null,null,null,null,null,null,null,null,null,null,null,null,null,null,null,null,null,null,null,null,null,null,null,null,null,null,null,null,"Protein Unique 13","TCATGAGC","ATCACACG","CGTGTGAT"]
[null,null,null,null,null,null,null,null,null,null,null,null,null,null,null,null,null,null,null,null,null,null,null,null,null,null,null,null,null,null,null,null,null,null,null,null,null,null,null,null,null,null,null,null,null,null,null,"Protein Unique 14","CCTGAGAT","CCGTAAGA","TCTTACGG"]
["Total read pairs (including PhiX)",{"$f":"IFERROR(IF(SUM(K16:K31)*(1+B11)=0, \"\",SUM(K16:K31)*(1+B11) ),\"\")","v":""},"(2 x 150bp)",{"$f":"IF(B50=\"\",\"\",IF($B$50>$B$10,\"Warning: number of required reads exceeds limit for this sequencing instrument.\",\"\"))","v":""},null,null,null,null,null,null,null,null,null,null,null,null,null,null,null,null,null,null,null,null,null,null,null,null,null,null,null,null,null,null,null,null,null,null,null,null,null,null,null,null,null,null,null,"Protein Unique 15","TAGCGAGT","TACGCCTT","AAGGCGTA"]
[null,null,null,null,null,null,null,null,null,null,null,null,null,null,null,null,null,null,null,null,null,null,null,null,null,null,null,null,null,null,null,null,null,null,null,null,null,null,null,null,null,null,null,null,null,null,null,"Protein Unique 16","GTAGCTCC","CGACGTTA","TAACGTCG"]
["Index Primer Information:",null,null,null,null,null,null,null,null,null,null,null,null,null,null,null,null,null,null,null,null,null,null,null,null,null,null,null,null,null,null,null,null,null,null,null,null,null,null,null,null,null,null,null,null,null,null,"RNA Index 1","TGTGACTG","GATAGGCT","AGCCTATC"]
[null,"Sample Name","Index i7","Index i5","Index i5 Reverse Complement",null,null,null,null,null,null,null,null,null,null,null,null,null,null,null,null,null,null,null,null,null,null,null,null,null,null,null,null,null,null,null,null,null,null,null,null,null,null,null,null,null,null,"RNA Index 2","GTCATCGA","AGTGGATC","GATCCACT"]
["Sample 1",{"$f":"IF(B16=\"\", \"\", B16)","v":""},{"$f":"IFERROR(IF(E16=\"\",VLOOKUP(D16, $AV$19:$AY$59,2,0),VLOOKUP(E16, $AV$19:$AY$59,2,0)), \"\")","v":""},{"$f":"IFERROR(IF(F16=\"\",VLOOKUP(D16, $AV$19:$AY$59,3,0),VLOOKUP(F16, $AV$19:$AY$59,3,0)), \"\")","v":""},{"$f":"IFERROR(IF(F16=\"\",VLOOKUP(D16, $AV$19:$AY$59,4,0),VLOOKUP(F16, $AV$19:$AY$59,4,0)), \"\")","v":""},null,null,null,null,null,null,null,null,null,null,null,null,null,null,null,null,null,null,null,null,null,null,null,null,null,null,null,null,null,null,null,null,null,null,null,null,null,null,null,null,null,null,"RNA Index 3","AGCACTTC","TTGGACGT","ACGTCCAA"]
["Sample 2",{"$f":"IF(B17=\"\", \"\", B17)","v":""},{"$f":"IFERROR(IF(E17=\"\",VLOOKUP(D17, $AV$19:$AY$59,2,0),VLOOKUP(E17, $AV$19:$AY$59,2,0)), \"\")","v":""},{"$f":"IFERROR(IF(F17=\"\",VLOOKUP(D17, $AV$19:$AY$59,3,0),VLOOKUP(F17, $AV$19:$AY$59,3,0)), \"\")","v":""},{"$f":"IFERROR(IF(F17=\"\",VLOOKUP(D17, $AV$19:$AY$59,4,0),VLOOKUP(F17, $AV$19:$AY$59,4,0)), \"\")","v":""},null,null,null,null,null,null,null,null,null,null,null,null,null,null,null,null,null,null,null,null,null,null,null,null,null,null,null,null,null,null,null,null,null,null,null,null,null,null,null,null,null,null,"RNA Index 4","GAAGGAAG","ATGACGTC","GACGTCAT"]
["Sample 3",{"$f":"IF(B18=\"\", \"\", B18)","v":""},"","","",null,null,null,null,null,null,null,null,null,null,null,null,null,null,null,null,null,null,null,null,null,null,null,null,null,null,null,null,null,null,null,null,null,null,null,null,null,null,null,null,null,null,"RNA Index 5","GTTGTTCG","GAAGTTGG","CCAACTTC"]
["Sample 4","","","","",null,null,null,null,null,null,null,null,null,null,null,null,null,null,null,null,null,null,null,null,null,null,null,null,null,null,null,null,null,null,null,null,null,null,null,null,null,null,null,null,null,null,"RNA Index 6","CGGTTGTT","CATACCAC","GTGGTATG"]
["Sample 5","","","","",null,null,null,null,null,null,null,null,null,null,null,null,null,null,null,null,null,null,null,null,null,null,null,null,null,null,null,null,null,null,null,null,null,null,null,null,null,null,null,null,null,null,"RNA Index 7","ACTGAGGT","CTGTTGAC","GTCAACAG"]
["Sample 6","","","","",null,null,null,null,null,null,null,null,null,null,null,null,null,null,null,null,null,null,null,null,null,null,null,null,null,null,null,null,null,null,null,null,null,null,null,null,null,null,null,null,null,null,"RNA Index 8","TGAAGACG","TGGCATGT","ACATGCCA"]
["Sample 7","","","",""]
["Sample 8","","","",""]
["Sample 9","","","",""]
["Sample 10","","","",""]
["Sample 11","","","",""]
["Sample 12","","","",""]
["Sample 13","","","",""]
["Sample 14","","","",""]
["Sample 15","","","",""]
["Sample 16","","","",""]
["Sample 17",{"$f":"IF(B32=\"\", \"\", B32)","v":""},"","",""]
["Sample 18","","","",""]
["Sample 19",{"$f":"IF(B34=\"\", \"\", B34)","v":""},"","",""]
["Sample 20","","","",""]
["Sample 21","","","",""]
["Sample 22","","","",""]
["Sample 23","","","",""]
["Sample 24","","","",""]
["Sample 25","","","",""]
["Sample 26","","","",""]
["Sample 27","","","",""]
["Sample 28","","","",""]
["Sample 29","","","",""]
["Sample 30","","","",""]
["Sample 31","","","",""]
["Sample 32","","","",""]